bitfinex-derivatives/quotes_BTCF0:USTF0_20230401
["timestamp","ask_amount","ask_price","bid_price","bid_amount"]
[1680350082575,0.0704,28395.0,28394.0,0.3007]
[1680350082977,0.0704,28395.0,28393.0,0.07]
[1680350083371,0.0704,28395.0,28393.0,0.3707]
[1680350083579,0.05239509,28397.0,28394.0,0.0702]
[1680350083775,0.0704,28399.0,28396.0,0.3707]
[1680350083975,0.0704,28399.0,28397.0,0.1204]
[1680350084372,0.0704,28399.0,28397.0,0.44549026]
[1680350084671,0.3007,28401.0,28398.0,0.1204]
[1680350084878,0.0699,28402.0,28400.0,0.0704]
[1680350085473,0.027,28401.0,28400.0,0.0704]
[1680350086980,0.0699,28403.0,28400.0,0.0702]
[1680350087181,0.018,28402.0,28401.0,0.1204]
[1680350087577,0.0699,28403.0,28401.0,0.0704]
[1680350088177,0.001,28402.0,28401.0,0.0784]
[1680350088378,0.051,28402.0,28401.0,0.0784]
[1680350088584,0.0699,28403.0,28401.0,0.0724]
[1680350089078,0.001,28402.0,28401.0,0.0784]
[1680350089478,0.051,28402.0,28401.0,0.0784]
[1680350089786,0.001,28402.0,28401.0,0.0784]
[1680350090179,0.0699,28403.0,28401.0,0.0724]
[1680350090576,0.0699,28403.0,28401.0,0.0784]
[1680350090781,0.001,28402.0,28401.0,0.0784]
[1680350090975,0.051,28402.0,28401.0,0.0784]
[1680350091171,0.05,28402.0,28401.0,0.0724]
[1680350091376,0.0699,28403.0,28401.0,0.0724]
[1680350091683,0.001,28402.0,28401.0,0.0784]
[1680350091878,0.051,28402.0,28401.0,0.0784]
[1680350092477,0.001,28402.0,28401.0,0.0784]
[1680350096683,0.0712,28402.0,28401.0,0.008]
[1680350100888,0.3719,28402.0,28401.0,0.008]
[1680350102180,0.05,28401.0,28397.0,0.0705]
[1680350102383,0.3706,28399.0,28397.0,0.0705]
[1680350102589,0.05,28398.0,28397.0,0.0705]
[1680350103889,0.053,28398.0,28397.0,0.0705]
[1680350105685,0.05,28398.0,28397.0,0.0705]
[1680350105988,0.3527,28398.0,28397.0,0.0705]
[1680350106992,0.4229,28398.0,28395.0,0.0699]
[1680350107193,0.0704,28397.0,28395.0,0.0699]
[1680350107386,0.05,28396.0,28395.0,0.0699]
[1680350108199,0.1202,28396.0,28393.0,0.0704]
[1680350108490,0.3711,28394.0,28391.0,0.3007]
[1680350108693,0.0702,28392.0,28391.0,0.3007]
[1680350109991,0.0732,28392.0,28391.0,0.3007]
[1680350110392,0.1428,28392.0,28389.0,0.05267799]
[1680350110596,0.0704,28390.0,28388.0,0.3007]
[1680350110790,0.0702,28389.0,28388.0,0.3007]
[1680350111100,0.1202,28389.0,28388.0,0.3007]
[1680350111590,0.1202,28389.0,28387.0,0.0704]
[1680350111789,0.1202,28389.0,28388.0,0.3007]
[1680350112197,0.1232,28389.0,28388.0,0.3007]
[1680350112399,0.0732,28389.0,28388.0,0.3007]
[1680350112898,0.0732,28389.0,28387.0,0.0704]
[1680350113197,0.0732,28389.0,28388.0,0.3007]
[1680350113799,0.003,28389.0,28388.0,0.3711]
[1680350114295,0.5848,28389.0,28382.0,0.3007]
[1680350114499,0.8155,28389.0,28388.0,0.00147833]
[1680350114798,0.8854,28389.0,28383.0,0.0704]
[1680350114993,0.0697,28385.0,28383.0,0.0704]
[1680350115391,0.0697,28385.0,28384.0,0.3690892]
[1680350116396,0.0727,28385.0,28384.0,0.3690892]
[1680350116896,0.003,28385.0,28384.0,0.4389892]
[1680350117991,0.0698,28386.0,28384.0,0.0699]
[1680350117992,0.3705,28386.0,28384.0,0.0699]
[1680350118193,0.003,28385.0,28384.0,0.0699]
[1680350118399,0.053,28385.0,28384.0,0.0699]
[1680350119998,0.4241,28385.0,28381.0,0.1228891]
[1680350120199,0.3007,28382.0,28381.0,0.1228891]
[1680350121398,0.3735,28382.0,28381.0,0.0524891]
[1680350121601,0.3735,28382.0,28378.0,0.3706]
[1680350121801,0.0699,28380.0,28378.0,0.4244202]
[1680350122102,0.05,28379.0,28378.0,0.4244202]
[1680350122501,0.05,28379.0,28378.0,0.3545202]
[1680350123004,0.05,28379.0,28378.0,0.0538202]
[1680350123199,0.05,28379.0,28378.0,0.0018117]
[1680350124603,0.053,28379.0,28378.0,0.0018117]
[1680350128104,0.003,28379.0,28378.0,0.0018117]
[1680350130501,0.003,28379.0,28369.0,0.0881]
[1680350130502,0.05,28378.0,28369.0,0.0881]
[1680350130709,0.3007,28372.0,28369.0,0.0881]
[1680350131307,0.05,28371.0,28370.0,0.3843656]
[1680350131812,0.3007,28372.0,28370.0,0.3843656]
[1680350132113,0.003,28371.0,28370.0,0.3843656]
[1680350132312,0.1409,28371.0,28370.0,0.3843656]
[1680350132607,0.0909,28371.0,28366.0,0.1381]
[1680350132812,0.1409,28371.0,28368.0,0.3007]
[1680350133008,0.0909,28371.0,28368.0,0.3007]
[1680350133311,0.0879,28371.0,28369.0,0.38067966]
[1680350133513,0.0879,28371.0,28370.0,0.05]
[1680350134011,0.0909,28371.0,28369.0,0.38067966]
[1680350134211,0.0909,28371.0,28370.0,0.05]
[1680350134412,0.0909,28371.0,28369.0,0.38067966]
[1680350134809,0.0879,28371.0,28369.0,0.38067966]
[1680350135009,0.0909,28371.0,28369.0,0.38067966]
[1680350136721,0.0909,28371.0,28370.0,0.05]
[1680350136912,0.003,28371.0,28370.0,0.05]
[1680350137314,0.3888,28372.0,28370.0,0.05]
[1680350137513,0.003,28371.0,28369.0,0.38067966]
[1680350137913,0.003,28371.0,28370.0,0.00187137]
[1680350138213,0.003,28371.0,28370.0,0.05187137]
[1680350138409,0.003,28371.0,28370.0,0.00187137]
[1680350138608,0.053,28371.0,28370.0,0.00187137]
[1680350139105,0.053,28371.0,28368.0,0.088]
[1680350139309,0.3007,28369.0,28368.0,0.088]
[1680350139509,0.053,28371.0,28368.0,0.088]
[1680350139821,0.012,28371.0,28368.0,0.3887]
[1680350140116,0.012,28371.0,28369.0,0.05]
[1680350140316,0.003,28371.0,28368.0,0.3887]
[1680350140520,0.053,28371.0,28368.0,0.3887]
[1680350140913,0.003,28371.0,28368.0,0.3887]
[1680350145519,0.053,28371.0,28368.0,0.3887]
[1680350145726,0.003,28371.0,28368.0,0.3887]
[1680350146313,0.053,28371.0,28368.0,0.3887]
[1680350146517,0.003,28371.0,28368.0,0.3887]
[1680350146718,0.053,28371.0,28368.0,0.3887]
[1680350146914,0.053,28371.0,28369.0,0.0874]
[1680350147114,0.003,28371.0,28369.0,0.0874]
[1680350148223,0.053,28371.0,28369.0,0.0874]
[1680350149425,0.052,28371.0,28369.0,0.0874]
[1680350149825,0.002,28371.0,28369.0,0.0874]
[1680350150026,0.052,28371.0,28369.0,0.0874]
[1680350150422,0.002,28371.0,28369.0,0.0874]
[1680350150929,0.002,28371.0,28370.0,0.45878179]
[1680350151117,0.002,28371.0,28370.0,0.40878179]
[1680350151427,0.3906,28371.0,28370.0,0.40878179]
[1680350151728,0.05,28370.0,28366.0,0.0881]
[1680350152423,0.05,28370.0,28367.0,0.36675887]
[1680350152624,0.003,28370.0,28367.0,0.36675887]
[1680350152823,0.053,28370.0,28367.0,0.36675887]
[1680350153024,0.053,28370.0,28368.0,0.00193363]
[1680350153223,0.003,28370.0,28368.0,0.05193363]
[1680350153421,0.053,28370.0,28369.0,0.37384894]
[1680350154228,0.053,28370.0,28368.0,0.00193363]
[1680350154523,0.053,28370.0,28366.0,0.0881]
[1680350155330,0.3886,28371.0,28366.0,0.0881]
[1680350155529,0.053,28370.0,28367.0,0.40337769]
[1680350156133,0.053,28370.0,28366.0,0.0881]
[1680350157126,0.1407,28370.0,28365.0,0.3888]
[1680350157630,0.388,28368.0,28363.0,0.14009124]
[1680350158022,0.0873,28368.0,28365.0,0.3007]
[1680350158224,0.003,28370.0,28366.0,0.0872]
[1680350158433,0.003,28370.0,28369.0,0.3888]
[1680350158730,0.05,28374.0,28369.0,0.3888]
[1680350159028,0.05,28374.0,28372.0,0.0874]
[1680350159429,0.05,28375.0,28372.0,0.0874]
[1680350160226,0.068,28375.0,28372.0,0.0874]
[1680350160735,0.055,28375.0,28372.0,0.0874]
[1680350161332,0.05,28375.0,28372.0,0.0894]
[1680350161932,0.3507,28375.0,28372.0,0.0894]
[1680350163035,0.3517,28375.0,28372.0,0.0894]
[1680350165834,0.3517,28375.0,28372.0,0.002]
[1680350166841,0.3017,28375.0,28372.0,0.002]
[1680350167036,0.001,28375.0,28374.0,0.0881]
[1680350167245,0.0879,28382.0,28375.0,0.05]
[1680350167542,0.05,28381.0,28378.0,0.3007]
[1680350167937,0.05,28381.0,28379.0,0.00173057]
[1680350168132,0.1379,28382.0,28379.0,0.00173057]
[1680350168336,0.3892,28385.0,28380.0,0.0874]
[1680350168537,0.3892,28385.0,28381.0,0.05]
[1680350169344,0.3892,28385.0,28380.0,0.0874]
[1680350170048,0.3892,28385.0,28381.0,0.38098425]
[1680350170049,0.4132,28385.0,28381.0,0.38098425]
[1680350170445,0.4022,28385.0,28382.0,0.05]
[1680350170945,0.3137,28385.0,28383.0,0.0881]
[1680350171354,0.3137,28385.0,28384.0,0.05]
[1680350171553,0.3127,28385.0,28384.0,0.05]
[1680350171951,0.012,28385.0,28384.0,0.05]
[1680350172155,0.012,28385.0,28384.0,0.3507]
[1680350172350,0.0877,28388.0,28384.0,0.3507]
[1680350172656,0.012,28385.0,28384.0,0.3517]
[1680350172852,0.001,28385.0,28384.0,0.3577]
[1680350173153,0.001,28385.0,28384.0,0.84505127]
[1680350173753,0.4201,28391.0,28385.0,0.05]
[1680350174058,0.4201,28391.0,28388.0,0.3007]
[1680350174059,0.05,28390.0,28388.0,0.3007]
[1680350174354,0.0872,28391.0,28389.0,0.44101074]
[1680350174547,0.3007,28392.0,28390.0,0.0881]
[1680350174754,0.006,28391.0,28390.0,0.0881]
[1680350174952,0.006,28391.0,28390.0,0.1381]
[1680350175147,0.3007,28392.0,28390.0,0.0881]
[1680350175852,0.3007,28392.0,28390.0,0.0891]
[1680350176359,0.3067,28392.0,28390.0,0.0891]
[1680350176950,0.3067,28392.0,28390.0,0.001]
[1680350181462,0.3567,28392.0,28390.0,0.001]
[1680350181753,0.05,28391.0,28390.0,0.001]
[1680350182557,0.1381,28391.0,28385.0,0.0881]
[1680350182756,0.3881,28389.0,28385.0,0.0881]
[1680350182954,0.05,28388.0,28385.0,0.0881]
[1680350183151,0.05,28388.0,28386.0,0.37328093]
[1680350184462,0.3891,28389.0,28386.0,0.37328093]
[1680350184662,0.002,28388.0,28386.0,0.38528093]
[1680350184962,0.052,28388.0,28386.0,0.38528093]
[1680350185158,0.002,28388.0,28386.0,0.38528093]
[1680350187261,0.0881,28387.0,28386.0,0.012]
[1680350187966,0.05,28386.0,28379.0,0.3007]
[1680350188155,0.3007,28384.0,28379.0,0.3007]
[1680350188357,0.6014,28384.0,28377.0,0.05]
[1680350188662,0.05,28383.0,28376.0,0.3007]
[1680350188856,0.05,28383.0,28377.0,0.05]
[1680350189166,0.3007,28381.0,28376.0,0.3007]
[1680350189560,0.3007,28381.0,28377.0,0.05]
[1680350189758,0.3007,28381.0,28376.0,0.3007]
[1680350190361,0.3037,28381.0,28376.0,0.3007]
[1680350190561,0.3037,28381.0,28377.0,0.05]
[1680350190762,0.3037,28381.0,28376.0,0.3007]
[1680350190965,0.3037,28381.0,28377.0,0.05]
[1680350191469,0.3037,28381.0,28376.0,0.3007]
[1680350191966,0.3918,28381.0,28376.0,0.3887]
[1680350192559,0.05,28380.0,28376.0,0.3887]
[1680350192756,0.05,28380.0,28377.0,0.38873292]
[1680350193561,0.053,28380.0,28377.0,0.38873292]
[1680350193964,0.05,28380.0,28377.0,0.38873292]
[1680350194165,0.053,28380.0,28377.0,0.38873292]
[1680350194563,0.003,28380.0,28377.0,0.38873292]
[1680350194964,0.053,28380.0,28377.0,0.38873292]
[1680350195167,0.003,28380.0,28377.0,0.38873292]
[1680350195967,0.053,28380.0,28377.0,0.38873292]
[1680350196158,0.0873,28379.0,28378.0,0.00153236]
[1680350196667,0.0873,28379.0,28375.0,0.05412802]
[1680350196863,0.3007,28377.0,28374.0,0.0881]
[1680350197064,0.05,28376.0,28373.0,0.3007]
[1680350197263,0.05,28376.0,28373.0,0.35403469]
[1680350197563,0.05,28376.0,28373.0,0.05333469]
[1680350197768,0.05,28376.0,28374.0,0.39283627]
[1680350197967,0.05,28376.0,28374.0,0.39439896]
[1680350198169,0.05,28376.0,28374.0,0.00156269]
[1680350198366,0.053,28376.0,28374.0,0.00156269]
[1680350198965,0.0879,28375.0,28374.0,0.00156269]
[1680350199164,0.0879,28375.0,28372.0,0.05249102]
[1680350199461,0.3007,28373.0,28369.0,0.0874]
[1680350199765,0.05,28372.0,28369.0,0.0874]
[1680350200167,0.05,28372.0,28370.0,0.37104674]
[1680350201071,0.053,28372.0,28370.0,0.37104674]
[1680350201774,0.003,28372.0,28370.0,0.37104674]
[1680350208674,0.003,28372.0,28371.0,0.3887]
[1680350208872,0.003,28372.0,28371.0,0.4387]
[1680350209077,0.003,28372.0,28371.0,0.80779599]
[1680350210771,0.003,28372.0,28371.0,0.75779599]
[1680350210978,0.003,28372.0,28371.0,0.45709599]
[1680350213071,0.003,28372.0,28371.0,0.45878015]
[1680350214477,0.003,28372.0,28371.0,0.51191253]
[1680350217082,0.003,28372.0,28371.0,0.51201253]
[1680350226879,0.003,28372.0,28371.0,0.42391253]
[1680350227479,0.003,28372.0,28371.0,0.05481654]
[1680350227675,0.053,28372.0,28371.0,0.05481654]
[1680350227880,0.003,28372.0,28371.0,0.05481654]
[1680350228780,0.053,28372.0,28371.0,0.05481654]
[1680350228985,0.003,28372.0,28371.0,0.05481654]
[1680350230389,0.053,28372.0,28371.0,0.05481654]
[1680350231593,0.003,28372.0,28371.0,0.05481654]
[1680350231790,0.053,28372.0,28371.0,0.05481654]
[1680350232088,0.053,28372.0,28371.0,0.00168416]
[1680350232089,0.1409,28372.0,28371.0,0.00168416]
[1680350232292,0.1409,28372.0,28367.0,0.40575991]
[1680350232593,0.07,28369.0,28367.0,0.47625991]
[1680350232792,0.07,28369.0,28367.0,0.3712]
[1680350234493,0.07,28369.0,28368.0,0.38972695]
[1680350234690,0.07,28369.0,28368.0,0.43972695]
[1680350234899,0.07,28369.0,28368.0,0.38972695]
[1680350235289,0.07,28369.0,28368.0,0.43972695]
[1680350235485,0.073,28369.0,28365.0,0.10661572]
[1680350235686,0.0705,28366.0,28363.0,0.35249124]
[1680350235887,0.0705,28366.0,28364.0,0.0698]
[1680350236888,0.0704,28368.0,28365.0,0.0704]
[1680350237087,0.003,28366.0,28365.0,0.05]
[1680350237283,0.003,28366.0,28365.0,0.1198]
[1680350237490,0.003,28366.0,28364.0,0.1375]
[1680350237688,0.003,28366.0,28365.0,0.05]
[1680350238490,0.003,28366.0,28364.0,0.1375]
[1680350238684,0.003,28366.0,28365.0,0.05]
[1680350239295,0.3888,28369.0,28365.0,0.05]
[1680350239489,0.003,28366.0,28365.0,0.05]
[1680350240990,0.003,28366.0,28365.0,0.1376]
[1680350241382,0.003,28366.0,28365.0,0.53505711]
[1680350241687,0.003,28366.0,28365.0,0.83575711]
[1680350242696,0.1376,28372.0,28366.0,0.05]
[1680350242892,0.0876,28372.0,28368.0,0.3007]
[1680350243091,0.0876,28372.0,28369.0,0.05]
[1680350243293,0.0876,28372.0,28369.0,0.43240123]
[1680350243493,0.0876,28372.0,28369.0,0.38240123]
[1680350244196,0.0906,28372.0,28369.0,0.38240123]
[1680350245095,0.0906,28372.0,28369.0,0.38440123]
[1680350245294,0.003,28372.0,28369.0,0.47250123]
[1680350245595,0.003,28372.0,28371.0,0.3007]
[1680350246892,0.003,28372.0,28371.0,0.3887]
[1680350247095,0.003,28372.0,28371.0,0.3907]
[1680350247399,0.003,28372.0,28371.0,0.76950563]
[1680350252299,0.003,28372.0,28371.0,0.82278008]
[1680350255204,0.003,28372.0,28371.0,0.76950563]
[1680350255698,0.05,28375.0,28371.0,0.76750563]
[1680350255912,0.002,28372.0,28371.0,0.76950563]
[1680350256504,0.002,28372.0,28371.0,0.46880563]
[1680350257002,0.002,28372.0,28371.0,0.38080563]
[1680350258005,0.002,28372.0,28371.0,0.38275975]
[1680350261309,0.002,28372.0,28371.0,0.43656872]
[1680350261514,0.002,28372.0,28371.0,0.52406872]
[1680350266112,0.002,28372.0,28371.0,0.82476872]
[1680350271420,0.3886,28381.0,28371.0,0.82476872]
[1680350271619,0.3886,28381.0,28376.0,0.3882]
[1680350271809,0.3886,28381.0,28377.0,0.05]
[1680350272008,0.3886,28381.0,28377.0,0.45384074]
[1680350272410,0.027,28380.0,28377.0,0.45384074]
[1680350272615,0.077,28380.0,28377.0,0.40384074]
[1680350273016,0.05,28380.0,28378.0,0.00171781]
[1680350273315,0.05,28380.0,28379.0,0.40614599]
[1680350273519,0.4156,28381.0,28379.0,0.40614599]
[1680350274115,0.3886,28381.0,28380.0,0.00171782]
[1680350274316,0.0879,28381.0,28380.0,0.00171782]
[1680350274719,0.1149,28381.0,28380.0,0.00171782]
[1680350276823,0.1649,28381.0,28380.0,0.00171782]
[1680350277022,0.077,28381.0,28380.0,0.00171782]
[1680350278522,0.05,28380.0,28374.0,0.0876]
[1680350278710,0.3888,28378.0,28375.0,0.00150314]
[1680350278916,0.05,28377.0,28375.0,0.05150314]
[1680350279116,0.3888,28378.0,28375.0,0.05150314]
[1680350279317,0.3888,28378.0,28376.0,0.37393435]
[1680350279513,0.3888,28378.0,28377.0,0.05]
[1680350279927,0.3888,28378.0,28376.0,0.37393435]
[1680350280325,0.4088,28378.0,28376.0,0.37393435]
[1680350282722,0.1081,28378.0,28376.0,0.37393435]
[1680350283925,0.02,28378.0,28377.0,0.0877]
[1680350284315,0.02,28378.0,28377.0,0.52040457]
[1680350286416,0.7007,28385.0,28378.0,0.05]
[1680350286417,0.7886,28385.0,28378.0,0.05]
[1680350286616,0.7886,28385.0,28380.0,0.0881]
[1680350287023,0.7886,28385.0,28381.0,0.37708008]
[1680350287223,0.3007,28382.0,28381.0,0.37708008]
[1680350288929,0.3147,28382.0,28381.0,0.37908008]
[1680350291625,0.4028,28382.0,28381.0,0.37908008]
[1680350291830,0.4028,28382.0,28381.0,0.002]
[1680350297537,0.3852,28382.0,28381.0,0.002]
[1680350298343,0.3852,28382.0,28381.0,0.38279987]
[1680350299639,0.3147,28382.0,28381.0,0.45289987]
[1680350307045,0.3852,28382.0,28381.0,0.38279987]
[1680350313659,0.4555,28382.0,28381.0,0.38279987]
[1680350318767,0.4555,28382.0,28381.0,0.37303328]
[1680350319056,0.1548,28382.0,28381.0,0.37303328]
[1680350319262,0.4555,28382.0,28381.0,0.37303328]
[1680350321160,0.4555,28382.0,28377.0,0.0701]
[1680350321360,0.0705,28379.0,28377.0,0.0701]
[1680350321859,0.0705,28379.0,28378.0,0.38960961]
[1680350322857,0.0865,28379.0,28378.0,0.38960961]
[1680350323262,0.0865,28379.0,28378.0,0.39160961]
[1680350327454,0.998,28379.0,28371.0,0.05380897]
[1680350327654,0.0705,28372.0,28369.0,0.3705]
[1680350327960,0.0705,28371.0,28369.0,0.3705]
[1680350328266,0.0705,28371.0,28370.0,0.39596561]
[1680350328965,0.0725,28371.0,28370.0,0.39596561]
[1680350329366,0.0705,28371.0,28370.0,0.39596561]
[1680350329667,0.0725,28371.0,28370.0,0.41496561]
[1680350337071,0.002,28371.0,28370.0,0.48506561]
[1680350343062,0.0705,28375.0,28371.0,0.05]
[1680350343365,0.0705,28375.0,28373.0,0.3706]
[1680350343562,0.0705,28375.0,28374.0,0.05]
[1680350343767,0.0705,28375.0,28374.0,0.43821883]
[1680350344968,0.0705,28375.0,28374.0,0.44021883]
[1680350345369,0.0705,28375.0,28374.0,0.39021883]
[1680350346470,0.0705,28375.0,28374.0,0.44021883]
[1680350346670,0.0705,28375.0,28374.0,0.39021883]
[1680350346871,0.0705,28375.0,28374.0,0.44021883]
[1680350347071,0.0699,28377.0,28374.0,0.46001883]
[1680350347273,0.0699,28377.0,28376.0,0.05]
[1680350347873,0.0699,28377.0,28375.0,0.0704]
[1680350348276,0.3719,28379.0,28376.0,0.07]
[1680350348277,0.3706,28379.0,28376.0,0.07]
[1680350348570,0.3706,28379.0,28377.0,0.0705]
[1680350349769,0.3706,28379.0,28378.0,0.39113061]
[1680350349969,0.3866,28379.0,28378.0,0.39113061]
[1680350351775,0.3866,28379.0,28378.0,0.39313061]
[1680350354567,0.3866,28379.0,28378.0,0.44313061]
[1680350355476,0.3866,28379.0,28378.0,0.39313061]
[1680350356985,0.3167,28379.0,28378.0,0.46363061]
[1680350358188,0.016,28379.0,28378.0,0.46363061]
[1680350361884,0.016,28379.0,28378.0,0.46313061]
[1680350362789,0.016,28379.0,28378.0,0.53303061]
[1680350363290,0.016,28379.0,28378.0,0.46303061]
[1680350376399,0.016,28379.0,28378.0,0.53333061]
[1680350376795,0.016,28379.0,28378.0,0.83403061]
[1680350396911,0.016,28379.0,28378.0,0.76373061]
[1680350398208,0.016,28379.0,28378.0,0.76355225]
[1680350403310,0.3866,28379.0,28378.0,0.46335225]
[1680350403721,0.3866,28379.0,28378.0,0.0724]
[1680350407019,0.4372,28379.0,28378.0,0.002]
[1680350410515,0.3872,28379.0,28378.0,0.002]
[1680350410717,0.3167,28379.0,28378.0,0.0719]
[1680350411022,0.016,28379.0,28378.0,0.0719]
[1680350411720,0.016,28379.0,28378.0,0.48045065]
[1680350413920,0.016,28379.0,28378.0,0.48105065]
[1680350419030,0.3007,28385.0,28379.0,0.2619]
[1680350419225,0.3007,28385.0,28384.0,0.0703]
[1680350420430,0.4212,28385.0,28382.0,0.0704]
[1680350420618,0.0705,28383.0,28382.0,0.0704]
[1680350421228,0.0705,28383.0,28382.0,0.44859389]
[1680350421630,0.0775,28383.0,28382.0,0.44959389]
[1680350423220,0.0775,28383.0,28382.0,0.37919389]
[1680350423527,0.007,28383.0,28382.0,0.44969389]
[1680350437040,0.007,28383.0,28382.0,0.44909389]
[1680350447041,0.0775,28383.0,28382.0,0.37919389]
[1680350449241,0.007,28383.0,28382.0,0.51889389]
[1680350449544,0.007,28383.0,28382.0,0.44899389]
[1680350460350,0.077,28383.0,28382.0,0.37919389]
[1680350462056,0.3777,28383.0,28382.0,0.37919389]
[1680350467053,0.3077,28383.0,28382.0,0.44929389]
[1680350473066,0.3077,28383.0,28382.0,0.44919389]
[1680350475463,0.007,28383.0,28382.0,0.44919389]
[1680350486969,0.0775,28383.0,28382.0,0.37919389]
[1680350507096,0.007,28383.0,28382.0,0.44969389]
[1680350510593,0.007,28383.0,28382.0,0.75039389]
[1680350512893,0.007,28383.0,28382.0,0.44969389]
[1680350513098,0.007,28383.0,28382.0,0.75039389]
[1680350529605,0.007,28383.0,28382.0,0.44969389]
[1680350530004,0.007,28383.0,28382.0,0.75039389]
[1680350535211,0.007,28383.0,28382.0,0.44969389]
[1680350535405,0.007,28383.0,28382.0,0.75039389]
[1680350536108,0.0705,28385.0,28382.0,0.75039389]
[1680350536309,0.0705,28388.0,28384.0,0.0705]
[1680350536509,0.05,28387.0,28386.0,0.0704]
[1680350536704,0.1205,28388.0,28386.0,0.0704]
[1680350536909,0.0705,28388.0,28386.0,0.0704]
[1680350537105,0.0705,28387.0,28383.0,0.07]
[1680350537305,0.05,28384.0,28383.0,0.07]
[1680350538008,0.05,28384.0,28383.0,0.072]
[1680350538315,0.05,28384.0,28383.0,0.07]
[1680350538513,0.063,28384.0,28383.0,0.071]
[1680350541711,0.3637,28384.0,28383.0,0.071]
[1680350541918,0.4342,28384.0,28383.0,0.0709]
[1680350542219,0.4337,28384.0,28379.0,0.07]
[1680350542521,0.3712,28381.0,28379.0,0.07]
[1680350542919,0.05,28380.0,28379.0,0.07]
[1680350543412,0.3712,28381.0,28379.0,0.07]
[1680350543618,0.3722,28381.0,28379.0,0.077]
[1680350544019,0.001,28380.0,28379.0,0.083]
[1680350544318,0.051,28380.0,28379.0,0.083]
[1680350544519,0.05,28380.0,28379.0,0.077]
[1680350545219,0.051,28380.0,28379.0,0.083]
[1680350545612,0.001,28380.0,28379.0,0.083]
[1680350545807,0.051,28380.0,28379.0,0.083]
[1680350546616,0.001,28380.0,28379.0,0.083]
[1680350547016,0.1215,28380.0,28379.0,0.013]
[1680350552814,0.0715,28380.0,28379.0,0.013]
[1680350553421,0.12523395,28380.0,28379.0,0.013]
[1680350555127,0.0715,28380.0,28379.0,0.013]
[1680350577045,0.0713,28380.0,28379.0,0.0833]
[1680350583658,0.0713,28380.0,28379.0,0.384]
[1680350586964,0.0715,28380.0,28379.0,0.3137]
[1680350593963,0.0715,28380.0,28379.0,0.013]
[1680350597065,0.0713,28380.0,28379.0,0.01284778]
[1680350597366,0.1213,28380.0,28379.0,0.01284778]
[1680350598462,0.0713,28380.0,28379.0,0.01284778]
[1680350600067,0.07109812,28380.0,28379.0,0.01284778]
[1680350603862,0.07069812,28380.0,28379.0,0.01284778]
[1680350633188,0.37139812,28380.0,28379.0,0.01284778]
[1680350638805,0.42693496,28387.0,28380.0,0.3517]
[1680350639103,0.3007,28387.0,28383.0,0.3007]
[1680350639301,0.3007,28387.0,28384.0,0.05]
[1680350639496,0.3007,28387.0,28384.0,0.4409232]
[1680350639900,0.3007,28387.0,28384.0,0.3909232]
[1680350640603,0.3017,28387.0,28386.0,0.0705]
[1680350641810,0.001,28387.0,28386.0,0.0705]
[1680350643410,0.10337931,28389.0,28386.0,0.0755]
[1680350643598,0.17387931,28389.0,28387.0,0.0703]
[1680350644202,0.47457931,28389.0,28387.0,0.0703]
[1680350644509,0.05,28388.0,28387.0,0.0703]
[1680350645009,0.05,28388.0,28387.0,0.0713]
[1680350646605,0.1205,28388.0,28387.0,0.001]
[1680350646799,0.1215,28388.0,28384.0,0.3706]
[1680350647002,0.0705,28386.0,28384.0,0.3706]
[1680350648305,0.0705,28386.0,28384.0,0.3826]
[1680350653311,0.0705,28386.0,28384.0,0.0819]
[1680350653614,0.0705,28386.0,28384.0,0.3826]
[1680350654714,0.05,28388.0,28384.0,0.3826]
[1680350654715,0.0705,28387.0,28385.0,0.0705]
[1680350654914,0.05,28386.0,28385.0,0.0705]
[1680350656415,0.05,28386.0,28385.0,0.0825]
[1680350657015,0.05,28386.0,28385.0,0.082]
[1680350657313,0.0699,28387.0,28385.0,0.082]
[1680350659014,0.0699,28387.0,28385.0,0.075]
[1680350666929,0.0699,28387.0,28385.0,0.0749]
[1680350670629,0.0699,28387.0,28386.0,0.39989777]
[1680350670928,0.0699,28387.0,28386.0,0.44989777]
[1680350672131,0.0699,28387.0,28386.0,0.45489777]
[1680350672337,0.3708,28391.0,28386.0,0.52499777]
[1680350672526,0.3708,28391.0,28389.0,0.0705]
[1680350673632,0.3718,28391.0,28389.0,0.0725]
[1680350675231,0.3708,28391.0,28389.0,0.0705]
[1680350675432,0.3718,28391.0,28389.0,0.0725]
[1680350676033,0.001,28391.0,28390.0,0.0704]
[1680350677235,0.05,28392.0,28390.0,0.0704]
[1680350677435,0.001,28391.0,28388.0,0.3007]
[1680350677630,0.001,28391.0,28390.0,0.0705]
[1680350682638,0.7517,28389.0,28379.0,0.05322185]
[1680350682939,0.0699,28382.0,28377.0,0.321]
[1680350683128,0.0699,28382.0,28380.0,0.0701]
[1680350684040,0.0699,28382.0,28380.0,0.0981]
[1680350685339,0.05,28384.0,28381.0,0.0699]
[1680350685538,0.05,28384.0,28383.0,0.0698]
[1680350686041,0.3712,28385.0,28383.0,0.0698]
[1680350686535,0.3712,28385.0,28383.0,0.0878]
[1680350686834,0.0705,28385.0,28383.0,0.0878]
[1680350687040,0.0705,28385.0,28383.0,0.0818]
[1680350688843,0.05,28384.0,28383.0,0.0818]